[Event "Late-Titled-Tuesday-Blitz-September-19-2023"]
[Site "Chess.com"]
[Date "2023.09.19"]
[Round "10"]
[White "laskakid"]
[Black "IMRosen"]
[Result "1-0"]
[WhiteElo "2315"]
[BlackElo "2534"]
[TimeControl "180+1"]
[EndTime "15:54:47 PDT"]
[Termination "laskakid won on time"]

1. d4 {[%clk 0:03:00.9]} 1... Nf6 {[%clk 0:02:52.6]} 2. c4 {[%clk 0:03:00.6]}
2... e5 {[%clk 0:02:52.1]} 3. dxe5 {[%clk 0:02:59.9]} 3... Ng4 {[%clk
0:02:51.6]} 4. e3 {[%clk 0:02:58.4]} 4... Nxe5 {[%clk 0:02:50.6]} 5. Nh3 {[%clk
0:02:58.6]} 5... Ng6 {[%clk 0:02:50.8]} 6. Bd3 {[%clk 0:02:49.4]} 6... Nc6
{[%clk 0:02:49.1]} 7. Bxg6 {[%clk 0:02:46.2]} 7... hxg6 {[%clk 0:02:49.1]} 8.
Nf4 {[%clk 0:02:46.4]} 8... Bb4+ {[%clk 0:02:41.7]} 9. Bd2 {[%clk 0:02:44.8]}
9... a5 {[%clk 0:02:42.2]} 10. Nc3 {[%clk 0:02:42.5]} 10... d6 {[%clk
0:02:36.1]} 11. Ncd5 {[%clk 0:02:40.9]} 11... Bxd2+ {[%clk 0:02:35.7]} 12. Qxd2
{[%clk 0:02:40.6]} 12... Ne5 {[%clk 0:02:35.3]} 13. Rc1 {[%clk 0:02:36.9]} 13...
Bf5 {[%clk 0:02:32.6]} 14. O-O {[%clk 0:02:23.9]} 14... g5 {[%clk 0:02:14.4]}
15. Ne2 {[%clk 0:02:16.7]} 15... g4 {[%clk 0:02:03.8]} 16. f4 {[%clk 0:01:58]}
16... gxf3 {[%clk 0:01:36.3]} 17. gxf3 {[%clk 0:01:57.2]} 17... c6 {[%clk
0:01:05]} 18. Ndf4 {[%clk 0:01:50.6]} 18... g5 {[%clk 0:01:03.8]} 19. Ng2 {[%clk
0:01:44.2]} 19... Qf6 {[%clk 0:00:58.1]} 20. Ng3 {[%clk 0:01:40.6]} 20... Bd3
{[%clk 0:00:31.2]} 21. f4 {[%clk 0:01:27.2]} 21... gxf4 {[%clk 0:00:28.2]} 22.
exf4 {[%clk 0:01:26.7]} 22... Bxf1 {[%clk 0:00:17.1]} 23. fxe5 {[%clk
0:01:25.9]} 23... dxe5 {[%clk 0:00:15.9]} 24. Rxf1 {[%clk 0:01:24]} 24... Qd8
{[%clk 0:00:15]} 25. Qe3 {[%clk 0:01:11.4]} 25... Qd4 {[%clk 0:00:14]} 26. Qxd4
{[%clk 0:01:11.3]} 26... exd4 {[%clk 0:00:14.9]} 27. Nf5 {[%clk 0:01:09.8]}
27... O-O-O {[%clk 0:00:13.8]} 28. Rd1 {[%clk 0:01:07.8]} 28... d3 {[%clk
0:00:14]} 29. h4 {[%clk 0:01:05.7]} 29... d2 {[%clk 0:00:13.4]} 30. Kf2 {[%clk
0:01:05.4]} 30... Rhe8 {[%clk 0:00:12]} 31. Nge3 {[%clk 0:01:05.5]} 31... Re4
{[%clk 0:00:11.3]} 32. Ke2 {[%clk 0:01:04.2]} 32... b5 {[%clk 0:00:06]} 33. Rxd2
{[%clk 0:01:03.2]} 33... Rxd2+ {[%clk 0:00:02.7]} 34. Kxd2 {[%clk 0:01:03.4]}
34... Re5 {[%clk 0:00:01.2]} 35. h5 {[%clk 0:01:03.2]} 35... bxc4 {[%clk
0:00:01.4]} 36. h6 {[%clk 0:01:02.8]} 1-0

[Event "Late-Titled-Tuesday-Blitz-September-19-2023"]
[Site "Chess.com"]
[Date "2023.09.19"]
[Round "10"]
[White "CFalcons8"]
[Black "Garmendiarov"]
[Result "1-0"]
[WhiteElo "2268"]
[BlackElo "2314"]
[TimeControl "180+1"]
[EndTime "15:54:47 PDT"]
[Termination "CFalcons8 won by resignation"]

1. e4 {[%clk 0:03:00.9]} 1... c5 {[%clk 0:03:00.1]} 2. Nf3 {[%clk 0:02:59.5]}
2... d6 {[%clk 0:03:00.5]} 3. d4 {[%clk 0:02:58.3]} 3... cxd4 {[%clk 0:03:01.4]}
4. Nxd4 {[%clk 0:02:58.2]} 4... Nf6 {[%clk 0:03:01.2]} 5. Nc3 {[%clk 0:02:57.9]}
5... a6 {[%clk 0:03:01.7]} 6. h3 {[%clk 0:02:56.4]} 6... e5 {[%clk 0:02:52.7]}
7. Nf3 {[%clk 0:02:55.7]} 7... Be6 {[%clk 0:01:28.2]} 8. g4 {[%clk 0:02:48.6]}
8... h6 {[%clk 0:00:56.7]} 9. g5 {[%clk 0:02:45.8]} 9... hxg5 {[%clk 0:00:56.2]}
10. Nxg5 {[%clk 0:02:46.7]} 10... Nbd7 {[%clk 0:00:55.4]} 11. Rg1 {[%clk
0:02:38.9]} 11... Rc8 {[%clk 0:00:51.2]} 12. Be3 {[%clk 0:02:34.5]} 12... Bc4
{[%clk 0:00:42.8]} 13. Bxc4 {[%clk 0:02:29.5]} 13... Rxc4 {[%clk 0:00:43.7]} 14.
Qd3 {[%clk 0:02:27.9]} 14... Qc7 {[%clk 0:00:42.2]} 15. O-O-O {[%clk 0:02:15.5]}
15... Be7 {[%clk 0:00:41.4]} 16. Kb1 {[%clk 0:02:08.3]} 16... O-O {[%clk
0:00:37.5]} 17. Nd5 {[%clk 0:02:01.1]} 17... Nxd5 {[%clk 0:00:37.7]} 18. exd5
{[%clk 0:02:01.6]} 18... e4 {[%clk 0:00:25.3]} 19. Qe2 {[%clk 0:01:49.1]} 19...
Ne5 {[%clk 0:00:16.1]} 20. Qh5 {[%clk 0:01:32.3]} 20... Bxg5 {[%clk 0:00:16.3]}
21. Rxg5 {[%clk 0:01:24.7]} 21... Rxc2 {[%clk 0:00:14.6]} 22. Rxg7+ {[%clk
0:01:07.4]} 22... Kxg7 {[%clk 0:00:15.5]} 23. Bh6+ {[%clk 0:01:04.4]} 23... Kg8
{[%clk 0:00:13.6]} 24. Qg5+ {[%clk 0:01:03.7]} 24... Ng6 {[%clk 0:00:13.7]} 25.
Qf6 {[%clk 0:01:01.3]} 25... Rxb2+ {[%clk 0:00:09.3]} 26. Qxb2 {[%clk
0:00:59.7]} 26... f6 {[%clk 0:00:09.2]} 27. Rg1 {[%clk 0:00:54.5]} 27... Kh7
{[%clk 0:00:09.1]} 28. Bxf8 {[%clk 0:00:53.9]} 28... Nxf8 {[%clk 0:00:09]} 29.
Qxf6 {[%clk 0:00:53.8]} 29... Qb6+ {[%clk 0:00:08.2]} 30. Ka1 {[%clk 0:00:53.1]}
30... Qd4+ {[%clk 0:00:04.2]} 31. Qxd4 {[%clk 0:00:52.6]} 1-0

[Event "Late-Titled-Tuesday-Blitz-September-19-2023"]
[Site "Chess.com"]
[Date "2023.09.19"]
[Round "10"]
[White "Bauman_Guy"]
[Black "jefferyx"]
[Result "0-1"]
[WhiteElo "2904"]
[BlackElo "3006"]
[TimeControl "180+1"]
[EndTime "15:54:48 PDT"]
[Termination "jefferyx won by resignation"]

1. e4 {[%clk 0:02:52.1]} 1... g6 {[%clk 0:03:00.9]} 2. d4 {[%clk 0:02:50.9]}
2... Bg7 {[%clk 0:03:00.2]} 3. Nc3 {[%clk 0:02:51.6]} 3... a6 {[%clk 0:02:58.8]}
4. a4 {[%clk 0:02:50.2]} 4... d6 {[%clk 0:02:58]} 5. Nf3 {[%clk 0:02:49.4]} 5...
Nf6 {[%clk 0:02:50.8]} 6. Bd3 {[%clk 0:02:40.9]} 6... Bg4 {[%clk 0:02:47.4]} 7.
h3 {[%clk 0:02:40.3]} 7... Bxf3 {[%clk 0:02:46.3]} 8. Qxf3 {[%clk 0:02:41.2]}
8... Nc6 {[%clk 0:02:47]} 9. Be3 {[%clk 0:02:41.1]} 9... O-O {[%clk 0:02:40.1]}
10. O-O {[%clk 0:02:40.2]} 10... Nd7 {[%clk 0:02:38.6]} 11. Ne2 {[%clk
0:02:39.8]} 11... e5 {[%clk 0:02:37.2]} 12. c3 {[%clk 0:02:36.1]} 12... exd4
{[%clk 0:02:24.3]} 13. cxd4 {[%clk 0:02:35.1]} 13... Nce5 {[%clk 0:02:21.6]} 14.
dxe5 {[%clk 0:02:28.8]} 14... Nxe5 {[%clk 0:02:22.5]} 15. Qg3 {[%clk 0:02:27.9]}
15... Nxd3 {[%clk 0:02:22.7]} 16. Bd4 {[%clk 0:02:21.6]} 16... Bxd4 {[%clk
0:02:16.1]} 17. Nxd4 {[%clk 0:02:22.5]} 17... Nc5 {[%clk 0:02:16.8]} 18. Rfe1
{[%clk 0:02:13]} 18... Re8 {[%clk 0:02:13.7]} 19. f3 {[%clk 0:02:05.9]} 19...
Qf6 {[%clk 0:02:10.1]} 20. Red1 {[%clk 0:02:05.8]} 20... a5 {[%clk 0:01:50.4]}
21. Qf2 {[%clk 0:02:00.6]} 21... c6 {[%clk 0:01:48.1]} 22. Rd2 {[%clk
0:01:58.5]} 22... Ra6 {[%clk 0:01:44.5]} 23. Rad1 {[%clk 0:01:57.4]} 23... Rb6
{[%clk 0:01:44.2]} 24. Nf5 {[%clk 0:01:22]} 24... gxf5 {[%clk 0:01:43.7]} 25.
Rxd6 {[%clk 0:01:21.6]} 25... Qe5 {[%clk 0:01:44]} 26. f4 {[%clk 0:00:39.3]}
26... Qxe4 {[%clk 0:01:44.1]} 27. Qg3+ {[%clk 0:00:25]} 27... Kh8 {[%clk
0:01:43.9]} 28. Qc3+ {[%clk 0:00:22.8]} 28... Kg8 {[%clk 0:01:44.1]} 29. Qg3+
{[%clk 0:00:18]} 29... Kf8 {[%clk 0:01:44.7]} 30. Qg5 {[%clk 0:00:15.3]} 30...
Qe7 {[%clk 0:01:26.6]} 31. Qxf5 {[%clk 0:00:10.7]} 31... Ne4 {[%clk 0:01:26.2]}
32. Qxh7 {[%clk 0:00:10]} 32... Qxd6 {[%clk 0:01:26.1]} 33. Rxd6 {[%clk
0:00:06.1]} 33... Nxd6 {[%clk 0:01:27]} 34. Qh6+ {[%clk 0:00:02.4]} 34... Ke7
{[%clk 0:01:26.9]} 35. f5 {[%clk 0:00:01.6]} 35... Rxb2 {[%clk 0:01:15.7]} 36.
Qf4 {[%clk 0:00:01.7]} 36... Kd7 {[%clk 0:01:15.3]} 37. h4 {[%clk 0:00:01.5]}
37... Ree2 {[%clk 0:01:15.7]} 38. f6 {[%clk 0:00:01.8]} 38... Rxg2+ {[%clk
0:01:15.8]} 39. Kf1 {[%clk 0:00:02.7]} 39... Rgf2+ {[%clk 0:01:15.8]} 40. Qxf2
{[%clk 0:00:03.6]} 40... Rxf2+ {[%clk 0:01:16]} 41. Kxf2 {[%clk 0:00:04.5]}
41... Ke6 {[%clk 0:01:16.7]} 42. Ke3 {[%clk 0:00:05.1]} 42... Kxf6 {[%clk
0:01:17.6]} 0-1

[Event "Late-Titled-Tuesday-Blitz-September-19-2023"]
[Site "Chess.com"]
[Date "2023.09.19"]
[Round "10"]
[White "DefiantChair"]
[Black "TigrVShlyape"]
[Result "1/2-1/2"]
[WhiteElo "2616"]
[BlackElo "2951"]
[TimeControl "180+1"]
[EndTime "15:54:58 PDT"]
[Termination "Game drawn by repetition"]

1. e4 {[%clk 0:03:00.9]} 1... c5 {[%clk 0:02:59.3]} 2. Nf3 {[%clk 0:03:01.5]}
2... e6 {[%clk 0:02:59.4]} 3. d4 {[%clk 0:03:02.3]} 3... cxd4 {[%clk 0:02:59.3]}
4. Nxd4 {[%clk 0:03:03.2]} 4... a6 {[%clk 0:02:59.6]} 5. c4 {[%clk 0:03:03.9]}
5... b6 {[%clk 0:02:57]} 6. Nc3 {[%clk 0:03:04.4]} 6... Bb7 {[%clk 0:02:56.9]}
7. Be2 {[%clk 0:03:05.1]} 7... Ne7 {[%clk 0:02:55.6]} 8. O-O {[%clk 0:03:05.4]}
8... Ng6 {[%clk 0:02:55.7]} 9. Be3 {[%clk 0:03:00.6]} 9... d6 {[%clk 0:02:54.1]}
10. Qd2 {[%clk 0:03:00.2]} 10... Nd7 {[%clk 0:02:53.4]} 11. f4 {[%clk
0:02:57.7]} 11... Be7 {[%clk 0:02:14.2]} 12. f5 {[%clk 0:02:51]} 12... exf5
{[%clk 0:02:13.6]} 13. exf5 {[%clk 0:02:44.6]} 13... Nge5 {[%clk 0:02:13.2]} 14.
f6 {[%clk 0:01:28.5]} 14... Bxf6 {[%clk 0:01:55.4]} 15. Nf5 {[%clk 0:01:28.2]}
15... O-O {[%clk 0:01:54.9]} 16. Nxd6 {[%clk 0:01:25.6]} 16... Bc6 {[%clk
0:01:50.7]} 17. Nde4 {[%clk 0:01:18.8]} 17... Be7 {[%clk 0:01:46.6]} 18. Nd5
{[%clk 0:01:17.2]} 18... Bxd5 {[%clk 0:01:33.9]} 19. Qxd5 {[%clk 0:01:12.4]}
19... Qc7 {[%clk 0:01:32.5]} 20. Bf4 {[%clk 0:01:01.9]} 20... Rad8 {[%clk
0:01:26.5]} 21. Kh1 {[%clk 0:00:53.8]} 21... Kh8 {[%clk 0:01:13.7]} 22. Ng3
{[%clk 0:00:29.2]} 22... f6 {[%clk 0:01:09.1]} 23. Nf5 {[%clk 0:00:28.9]} 23...
Nc5 {[%clk 0:01:06.8]} 24. Bxe5 {[%clk 0:00:22.8]} 24... fxe5 {[%clk 0:01:06.6]}
25. Nxe7 {[%clk 0:00:18.3]} 25... Qxe7 {[%clk 0:01:02.7]} 26. Rxf8+ {[%clk
0:00:18.1]} 26... Rxf8 {[%clk 0:01:01.8]} 27. Qc6 {[%clk 0:00:18.1]} 27... Rf6
{[%clk 0:00:52.1]} 28. Qc8+ {[%clk 0:00:15]} 28... Rf8 {[%clk 0:00:52]} 29. Qc6
{[%clk 0:00:15.3]} 29... Rf6 {[%clk 0:00:34]} 30. Qc8+ {[%clk 0:00:15.3]} 30...
Rf8 {[%clk 0:00:34]} 31. Qc6 {[%clk 0:00:15.9]} 1/2-1/2

[Event "Late-Titled-Tuesday-Blitz-September-19-2023"]
[Site "Chess.com"]
[Date "2023.09.19"]
[Round "10"]
[White "ural58"]
[Black "BeanScreen"]
[Result "0-1"]
[WhiteElo "2543"]
[BlackElo "2699"]
[TimeControl "180+1"]
[EndTime "15:55:00 PDT"]
[Termination "BeanScreen won on time"]

1. e4 {[%clk 0:02:44.7]} 1... e5 {[%clk 0:03:00]} 2. Nf3 {[%clk 0:02:29.3]} 2...
Nc6 {[%clk 0:03:00.5]} 3. Bc4 {[%clk 0:02:28.7]} 3... Nf6 {[%clk 0:03:00.2]} 4.
Ng5 {[%clk 0:02:27.5]} 4... d5 {[%clk 0:03:00.2]} 5. exd5 {[%clk 0:02:27.8]}
5... Na5 {[%clk 0:03:00.6]} 6. Bb5+ {[%clk 0:02:27.8]} 6... c6 {[%clk
0:03:01.3]} 7. dxc6 {[%clk 0:02:28]} 7... bxc6 {[%clk 0:03:02.2]} 8. Bd3 {[%clk
0:02:28.2]} 8... Nd5 {[%clk 0:03:01.8]} 9. h4 {[%clk 0:02:22.3]} 9... h6 {[%clk
0:03:02.2]} 10. Qh5 {[%clk 0:02:20.8]} 10... Qf6 {[%clk 0:03:01.6]} 11. Ne4
{[%clk 0:01:26.5]} 11... Qe6 {[%clk 0:02:47.3]} 12. Nbc3 {[%clk 0:01:00]} 12...
Nf4 {[%clk 0:02:42.3]} 13. Qf3 {[%clk 0:00:59.4]} 13... f5 {[%clk 0:02:34.8]}
14. Ng3 {[%clk 0:00:50.3]} 14... Nxd3+ {[%clk 0:02:28.1]} 15. Qxd3 {[%clk
0:00:49.8]} 15... Bc5 {[%clk 0:02:15.1]} 16. b3 {[%clk 0:00:20.6]} 16... Bb7
{[%clk 0:01:54]} 17. Bb2 {[%clk 0:00:19.7]} 17... Rd8 {[%clk 0:01:54.2]} 18. Qe2
{[%clk 0:00:18.8]} 18... O-O {[%clk 0:01:42.2]} 19. O-O-O {[%clk 0:00:18.5]}
19... Bd4 {[%clk 0:01:39]} 20. Rhe1 {[%clk 0:00:17.9]} 20... c5 {[%clk
0:01:38.2]} 21. f3 {[%clk 0:00:17.1]} 21... c4 {[%clk 0:01:37.8]} 22. Nf1 {[%clk
0:00:16.3]} 22... Ba6 {[%clk 0:01:33.4]} 23. b4 {[%clk 0:00:15.2]} 23... Nc6
{[%clk 0:01:13.8]} 24. b5 {[%clk 0:00:12.3]} 24... Bxb5 {[%clk 0:01:14]} 25.
Nxb5 {[%clk 0:00:11.9]} 25... Bxb2+ {[%clk 0:01:14.9]} 26. Kxb2 {[%clk
0:00:12.1]} 26... Rb8 {[%clk 0:01:15.5]} 27. a4 {[%clk 0:00:12.3]} 27... a6
{[%clk 0:01:15.5]} 28. Rb1 {[%clk 0:00:08.1]} 28... axb5 {[%clk 0:01:15.5]} 29.
axb5 {[%clk 0:00:08.8]} 29... Nd4 {[%clk 0:01:14.7]} 30. Qe3 {[%clk 0:00:07.1]}
30... c3+ {[%clk 0:01:04.8]} 31. Kc1 {[%clk 0:00:06.5]} 31... Qa2 {[%clk
0:00:55.3]} 32. Qxc3 {[%clk 0:00:03.1]} 32... Rfc8 {[%clk 0:00:51.5]} 33. Qb2
{[%clk 0:00:01.9]} 33... Rxc2+ {[%clk 0:00:50.8]} 0-1

[Event "Late-Titled-Tuesday-Blitz-September-19-2023"]
[Site "Chess.com"]
[Date "2023.09.19"]
[Round "10"]
[White "lluiss"]
[Black "KorolDimitriy75"]
[Result "0-1"]
[WhiteElo "2258"]
[BlackElo "2371"]
[TimeControl "180+1"]
[EndTime "15:55:10 PDT"]
[Termination "KorolDimitriy75 won on time"]

1. Nf3 {[%clk 0:03:00.9]} 1... c5 {[%clk 0:02:58.4]} 2. c4 {[%clk 0:03:00.3]}
2... g6 {[%clk 0:02:57]} 3. d4 {[%clk 0:02:58.2]} 3... cxd4 {[%clk 0:02:56]} 4.
Nxd4 {[%clk 0:02:57.8]} 4... Bg7 {[%clk 0:02:56.6]} 5. e4 {[%clk 0:02:57.2]}
5... Nc6 {[%clk 0:02:56.9]} 6. Be3 {[%clk 0:02:56.7]} 6... Nf6 {[%clk
0:02:56.5]} 7. Nc3 {[%clk 0:02:55.8]} 7... O-O {[%clk 0:02:56]} 8. Be2 {[%clk
0:02:55]} 8... d6 {[%clk 0:02:55.4]} 9. O-O {[%clk 0:02:53.4]} 9... Bd7 {[%clk
0:02:55.6]} 10. f3 {[%clk 0:02:53.4]} 10... Nxd4 {[%clk 0:02:55]} 11. Bxd4
{[%clk 0:02:53]} 11... a5 {[%clk 0:02:55.9]} 12. b3 {[%clk 0:02:30.7]} 12... Bc6
{[%clk 0:02:56.8]} 13. Qd2 {[%clk 0:02:28.7]} 13... Nd7 {[%clk 0:02:56.2]} 14.
Be3 {[%clk 0:02:16.1]} 14... Nc5 {[%clk 0:02:53.4]} 15. Rfb1 {[%clk 0:01:53.5]}
15... Qb6 {[%clk 0:02:47]} 16. Qc2 {[%clk 0:01:53.1]} 16... Rfc8 {[%clk
0:02:41.8]} 17. a3 {[%clk 0:01:52.5]} 17... Qd8 {[%clk 0:02:32.1]} 18. b4 {[%clk
0:01:46.2]} 18... axb4 {[%clk 0:02:31.2]} 19. axb4 {[%clk 0:01:46.1]} 19... Ne6
{[%clk 0:02:09.7]} 20. Qd2 {[%clk 0:01:24.1]} 20... Rxa1 {[%clk 0:01:58.2]} 21.
Rxa1 {[%clk 0:01:23.6]} 21... Ra8 {[%clk 0:01:58.9]} 22. Rxa8 {[%clk 0:01:20.8]}
22... Qxa8 {[%clk 0:01:59.8]} 23. Nd5 {[%clk 0:01:20.4]} 23... Bxd5 {[%clk
0:01:38.5]} 24. cxd5 {[%clk 0:01:09.9]} 24... Qa1+ {[%clk 0:01:13.9]} 25. Kf2
{[%clk 0:01:06.2]} 25... Nd4 {[%clk 0:01:04.7]} 26. Bc4 {[%clk 0:01:00.8]} 26...
b5 {[%clk 0:00:58.4]} 27. Bf1 {[%clk 0:00:53.8]} 27... h5 {[%clk 0:00:51.6]} 28.
Bg5 {[%clk 0:00:20.1]} 28... Kf8 {[%clk 0:00:49.3]} 29. Be3 {[%clk 0:00:14.5]}
29... Bf6 {[%clk 0:00:46.8]} 30. g3 {[%clk 0:00:12.8]} 30... Kg7 {[%clk
0:00:45.4]} 31. h4 {[%clk 0:00:12.8]} 31... Kh7 {[%clk 0:00:44.5]} 32. Kg2
{[%clk 0:00:11.4]} 32... Bg7 {[%clk 0:00:40.9]} 33. Be2 {[%clk 0:00:02]} 33...
e6 {[%clk 0:00:40.5]} 34. dxe6 {[%clk 0:00:01.4]} 34... fxe6 {[%clk 0:00:41.4]}
35. Bf1 {[%clk 0:00:01.5]} 35... d5 {[%clk 0:00:40.7]} 0-1

[Event "Late-Titled-Tuesday-Blitz-September-19-2023"]
[Site "Chess.com"]
[Date "2023.09.19"]
[Round "10"]
[White "TheMagician"]
[Black "davigator"]
[Result "0-1"]
[WhiteElo "2235"]
[BlackElo "2325"]
[TimeControl "180+1"]
[EndTime "15:55:14 PDT"]
[Termination "davigator won on time"]

1. d4 {[%clk 0:03:00.9]} 1... Nf6 {[%clk 0:02:58.9]} 2. Nf3 {[%clk 0:03:01]}
2... e6 {[%clk 0:02:58.7]} 3. Bg5 {[%clk 0:02:57.8]} 3... c5 {[%clk 0:02:57.7]}
4. e3 {[%clk 0:02:52.7]} 4... Qb6 {[%clk 0:02:55.5]} 5. Bxf6 {[%clk 0:02:46.3]}
5... gxf6 {[%clk 0:02:51.5]} 6. Qc1 {[%clk 0:02:43.8]} 6... d5 {[%clk
0:02:49.3]} 7. c3 {[%clk 0:02:40.5]} 7... Nc6 {[%clk 0:02:47.2]} 8. Be2 {[%clk
0:02:32.2]} 8... Bd7 {[%clk 0:02:46.3]} 9. O-O {[%clk 0:02:31.4]} 9... Bd6
{[%clk 0:02:44.9]} 10. a3 {[%clk 0:02:21.7]} 10... c4 {[%clk 0:02:36.3]} 11.
Nbd2 {[%clk 0:02:17.1]} 11... f5 {[%clk 0:02:35.8]} 12. Rb1 {[%clk 0:01:58.9]}
12... Na5 {[%clk 0:02:33.1]} 13. Qc2 {[%clk 0:01:54.3]} 13... O-O {[%clk
0:02:30.5]} 14. g3 {[%clk 0:01:50.7]} 14... Kh8 {[%clk 0:02:20]} 15. Nh4 {[%clk
0:01:48.8]} 15... Rg8 {[%clk 0:02:17.7]} 16. Ng2 {[%clk 0:01:38.8]} 16... Rg7
{[%clk 0:02:14.4]} 17. f4 {[%clk 0:01:37.8]} 17... Rc8 {[%clk 0:02:07.3]} 18.
Nf3 {[%clk 0:01:37.3]} 18... Be8 {[%clk 0:02:05.8]} 19. Ne5 {[%clk 0:01:36.8]}
19... f6 {[%clk 0:02:02.7]} 20. Nf3 {[%clk 0:01:36.1]} 20... Qd8 {[%clk
0:01:56]} 21. Nfh4 {[%clk 0:01:33.6]} 21... Qd7 {[%clk 0:01:51.4]} 22. Kf2
{[%clk 0:01:33.1]} 22... Qa4 {[%clk 0:01:48.6]} 23. Qxa4 {[%clk 0:01:29.9]}
23... Bxa4 {[%clk 0:01:48.5]} 24. Bd1 {[%clk 0:01:30.1]} 24... Bxd1 {[%clk
0:01:44.3]} 25. Rfxd1 {[%clk 0:01:29]} 25... Rc6 {[%clk 0:01:44.8]} 26. Kf3
{[%clk 0:01:24.9]} 26... Rb6 {[%clk 0:01:44.2]} 27. h3 {[%clk 0:01:20.4]} 27...
Nb3 {[%clk 0:01:42]} 28. g4 {[%clk 0:01:13.9]} 28... fxg4+ {[%clk 0:01:40.5]}
29. hxg4 {[%clk 0:01:13.8]} 29... Na5 {[%clk 0:01:39.6]} 30. Re1 {[%clk
0:01:10.2]} 30... Rb3 {[%clk 0:01:33.7]} 31. e4 {[%clk 0:00:58.2]} 31... Bxa3
{[%clk 0:01:30.5]} 32. bxa3 {[%clk 0:00:48.7]} 32... Rxc3+ {[%clk 0:01:28.9]}
33. Re3 {[%clk 0:00:46.7]} 33... Rb3 {[%clk 0:01:25.1]} 34. Rexb3 {[%clk
0:00:40.9]} 34... cxb3 {[%clk 0:01:24.9]} 35. exd5 {[%clk 0:00:38.8]} 35... exd5
{[%clk 0:01:24.4]} 36. Nf5 {[%clk 0:00:38.7]} 36... Rc7 {[%clk 0:01:24.6]} 37.
Nfe3 {[%clk 0:00:23.5]} 37... Rc3 {[%clk 0:01:21.3]} 38. Ke2 {[%clk 0:00:20.9]}
38... Nc4 {[%clk 0:01:10.7]} 39. f5 {[%clk 0:00:15.3]} 39... Nxa3 {[%clk
0:01:08.7]} 40. Rb2 {[%clk 0:00:11.9]} 40... Nc4 {[%clk 0:01:08.7]} 41. Nxd5
{[%clk 0:00:09.2]} 41... Rg3 {[%clk 0:01:06.7]} 42. Rb1 {[%clk 0:00:01.7]} 42...
Rxg2+ {[%clk 0:01:04.9]} 43. Kd3 {[%clk 0:00:02.3]} 43... Na5 {[%clk 0:01:04.8]}
44. Nxf6 {[%clk 0:00:01.1]} 44... Kg7 {[%clk 0:01:05.4]} 45. d5 {[%clk
0:00:01.2]} 45... Kxf6 {[%clk 0:01:05.1]} 0-1

[Event "Late-Titled-Tuesday-Blitz-September-19-2023"]
[Site "Chess.com"]
[Date "2023.09.19"]
[Round "10"]
[White "dorpato"]
[Black "Bala-Afiada"]
[Result "0-1"]
[WhiteElo "1997"]
[BlackElo "1966"]
[TimeControl "180+1"]
[EndTime "15:55:14 PDT"]
[Termination "Bala-Afiada won on time"]

1. e4 {[%clk 0:03:00.9]} 1... c5 {[%clk 0:02:57.4]} 2. Nc3 {[%clk 0:03:00.4]}
2... Nc6 {[%clk 0:02:56.7]} 3. g3 {[%clk 0:02:59.7]} 3... d6 {[%clk 0:02:54.9]}
4. Bg2 {[%clk 0:02:59]} 4... e6 {[%clk 0:02:55.5]} 5. d3 {[%clk 0:02:55]} 5...
Nge7 {[%clk 0:02:55.8]} 6. Be3 {[%clk 0:02:51.3]} 6... g6 {[%clk 0:02:56.3]} 7.
Qd2 {[%clk 0:02:49]} 7... Bg7 {[%clk 0:02:56.8]} 8. Bh6 {[%clk 0:02:45.7]} 8...
O-O {[%clk 0:02:48.8]} 9. Bxg7 {[%clk 0:02:44.4]} 9... Kxg7 {[%clk 0:02:49.7]}
10. h4 {[%clk 0:02:42.1]} 10... h5 {[%clk 0:02:49.1]} 11. Nge2 {[%clk
0:02:38.3]} 11... d5 {[%clk 0:02:48.4]} 12. exd5 {[%clk 0:02:35.6]} 12... Nxd5
{[%clk 0:02:42.3]} 13. O-O {[%clk 0:02:28.2]} 13... Qa5 {[%clk 0:02:22.3]} 14.
Qg5 {[%clk 0:01:46.1]} 14... f6 {[%clk 0:01:50.6]} 15. Qc1 {[%clk 0:01:41]}
15... Nxc3 {[%clk 0:01:45.5]} 16. Nxc3 {[%clk 0:01:37.9]} 16... Nd4 {[%clk
0:01:44.7]} 17. Ne4 {[%clk 0:01:24.2]} 17... Ne2+ {[%clk 0:01:41.8]} 18. Kh1
{[%clk 0:01:19.7]} 18... Nxc1 {[%clk 0:01:39.5]} 19. Rfxc1 {[%clk 0:01:15.2]}
19... Bd7 {[%clk 0:01:33.1]} 20. Nd6 {[%clk 0:01:09]} 20... Qd2 {[%clk
0:01:25.9]} 21. Kg1 {[%clk 0:00:47.3]} 21... Bc6 {[%clk 0:01:25.1]} 22. Nc4
{[%clk 0:00:28.4]} 22... Qe2 {[%clk 0:01:14.4]} 23. Re1 {[%clk 0:00:13.4]} 23...
Qg4 {[%clk 0:01:12.4]} 24. f3 {[%clk 0:00:09.6]} 24... Bxf3 {[%clk 0:01:06.2]}
25. Ne3 {[%clk 0:00:08.8]} 25... Qxg3 {[%clk 0:01:04.5]} 26. Kf1 {[%clk
0:00:07.8]} 26... Bxg2+ {[%clk 0:01:04.5]} 27. Nxg2 {[%clk 0:00:07.9]} 27...
Qf3+ {[%clk 0:01:04.4]} 28. Kg1 {[%clk 0:00:07.8]} 28... Rae8 {[%clk 0:00:58.8]}
29. Re3 {[%clk 0:00:07.1]} 29... Qf5 {[%clk 0:00:57.3]} 30. Rf1 {[%clk
0:00:06.3]} 30... Qd5 {[%clk 0:00:57.3]} 31. Nf4 {[%clk 0:00:06.2]} 31... Qd4
{[%clk 0:00:51.2]} 32. Re1 {[%clk 0:00:02.4]} 32... e5 {[%clk 0:00:48.3]} 33.
Ng2 {[%clk 0:00:01.2]} 33... f5 {[%clk 0:00:44]} 34. c3 {[%clk 0:00:01.4]} 34...
Qd6 {[%clk 0:00:40.8]} 0-1